fUSD/lending_fUSD_20260429
["ID","MTS","AMOUNT","RATE_DAILY","PERIOD"]
[421323331,1777434644055,-229.64516561,0.00012,2]
[421323332,1777434644065,-169.10699663,0.00012,2]
[421323333,1777434644076,-273.2468497,0.00012,2]
[421323334,1777434644086,-297.16245739,0.00012,2]
[421323335,1777434644096,-297.32158998,0.00012,2]
[421323336,1777434644106,-229.61466375,0.00012,2]
[421323337,1777434644117,-181.70919437,0.00012,2]
[421323338,1777434644127,-207.26564957,0.00012,2]
[421323339,1777434644137,-289.2219901,0.00012,2]
[421323340,1777434644149,-793.77221,0.00012,2]
[421323341,1777434644159,-793.7722,0.00012,2]
[421323342,1777434644170,-151.0,0.00012,2]
[421323343,1777434644181,-151.0,0.00012,2]
[421323344,1777434644191,-151.0,0.00012,2]
[421323345,1777434644201,-151.0,0.00012,2]
[421323346,1777434644211,-151.0,0.00012,2]
[421323347,1777434644221,-153.0998328,0.00012,2]
[421323348,1777434644231,-345.75211,0.00012,2]
[421323349,1777434644241,-345.75211,0.00012,2]
[421323350,1777434644252,-345.75211,0.00012,2]
[421323351,1777434644264,-345.75211,0.00012,2]
[421323352,1777434644273,-150.0,0.00012006,2]
[421323353,1777434644286,-150.0,0.00012006,2]
[421323354,1777434644296,-150.0,0.00012006,2]
[421323355,1777434644307,-161.0,0.0001201,2]
[421323356,1777434644317,-200.0,0.0001212,2]
[421323357,1777434644328,-162.31979731,0.0001213,2]
[421323358,1777434644339,-160.0,0.0001213,2]
[421323359,1777434644349,-200.0,0.00012133,2]
[421323360,1777434644360,-406.9,0.00012173,2]
[421323361,1777434644370,-200.0,0.00012192,2]
[421323362,1777434644379,-151.0,0.00012192,2]
[421323363,1777434644389,-2000.0,0.000122,2]
[421323364,1777434644399,-185.37,0.0001224,2]
[421323365,1777434644412,-1279.04,0.0001224,2]
[421323366,1777434644423,-200.0,0.00012241,2]
[421323367,1777434644433,-353.57142494,0.00012356,2]
[421323368,1777434644443,-200.0,0.00012364,2]
[421323369,1777434644456,-150.0,0.0001239,2]
[421323370,1777434644467,-150.0,0.0001239,2]
[421323371,1777434644476,-150.0,0.0001239,2]
[421323372,1777434644486,-167.0,0.0001239,2]
[421323373,1777434644496,-2802.0,0.000124,2]
[421323374,1777434644507,-200.0,0.00012411,2]
[421323375,1777434644517,-200.0,0.00012411,2]
[421323376,1777434644527,-200.0,0.00012411,2]
[421323377,1777434644537,-200.0,0.00012411,2]
[421323378,1777434644547,-200.0,0.00012411,2]
[421323379,1777434644558,-200.0,0.00012411,2]
[421323380,1777434644569,-200.0,0.00012411,2]
[421323381,1777434644579,-270.0,0.00012411,2]
[421323382,1777434644590,-1001.13211831,0.00012421,2]
[421323383,1777434644601,-406.9,0.00012447,2]
[421323384,1777434644612,-1008.5716395,0.00012468,2]
[421323385,1777434644622,-200.0,0.00012487,2]
[421323386,1777434644632,-209.40437684,0.00012517,2]
[421323387,1777434644643,-352.97296615,0.00012599,4]
[421323388,1777434644655,-214.98,0.00012605,2]
[421323389,1777434644665,-2000.0,0.00012615,2]
[421323390,1777434644677,-2000.0,0.00012615,2]
[421323391,1777434644687,-747.8093786,0.0001268,2]
[421323392,1777434644698,-200.0,0.00012681,2]
[421323393,1777434644710,-406.9,0.00012721,2]
[421323394,1777434644720,-200.0,0.0001274,2]
[421323395,1777434644730,-151.0,0.0001274,2]
[421323396,1777434644741,-350.0,0.00012766,2]
[421323397,1777434644752,-3292.0,0.0001292,2]
[421323398,1777434644764,-823.0,0.0001292,2]
[421323399,1777434644774,-214.98,0.0001297,2]
[421323400,1777434644784,-850.0,0.00012992,2]
[421323401,1777434644794,-850.0,0.00012992,2]
[421323402,1777434644805,-850.0,0.00012992,2]
[421323403,1777434644816,-850.0,0.00012992,2]
[421323404,1777434644826,-850.0,0.00012992,2]
[421323405,1777434644838,-850.0,0.00012992,2]
[421323406,1777434644849,-850.0,0.00012992,2]
[421323407,1777434644859,-850.0,0.00012992,2]
[421323408,1777434644869,-850.0,0.00012992,2]
[421323409,1777434644879,-478.0,0.00012992,2]
[421323410,1777434644889,-406.924825,0.00012995,2]
[421323411,1777434644898,-2147.68711451,0.00013,15]
[421323412,1777434645143,-250.0,0.00013,2]
[421323413,1777434645153,-736.0,0.0001302,2]
[421323414,1777434645164,-152.0,0.00013045,3]
[421323415,1777434645176,-217.15233878,0.00013065,2]
[421323416,1777434645186,-200.0,0.00013229,2]
[421323417,1777434645196,-3532.0,0.00013268,2]
[421323418,1777434645206,-1049.0,0.00013268,2]
[421323419,1777434645216,-1266.0,0.00013268,2]
[421323420,1777434645225,-927.0,0.00013268,2]
[421323421,1777434645236,-416.0,0.00013268,2]
[421323422,1777434645246,-6036.0,0.00013268,2]
[421323423,1777434645256,-200.0,0.00013288,2]
[421323424,1777434645267,-151.0,0.00013288,2]
[421323425,1777434645277,-214.97357745,0.00013334,2]
[421323426,1777434645288,-154.0,0.00013404,2]
[421323427,1777434645298,-150.0,0.00013414,2]
[421323428,1777434645308,-267.0,0.00013414,2]
[421323429,1777434645318,-200.0,0.0001359,2]
[421323430,1777434645328,-200.0,0.0001359,2]
[421323431,1777434645339,-200.0,0.0001359,2]
[421323432,1777434645349,-200.0,0.0001359,2]
[421323433,1777434645359,-200.0,0.0001359,2]
[421323434,1777434645369,-200.0,0.0001359,2]
[421323435,1777434645379,-200.0,0.0001359,2]
[421323436,1777434645389,-200.0,0.0001359,2]
[421323437,1777434645398,-184.0,0.0001359,2]
[421323438,1777434645408,-225.18697532,0.00013613,2]
[421323439,1777434645418,-152.0,0.00013627,4]
[421323440,1777434645428,-168.75,0.00013672,2]
[421323441,1777434645438,-168.75,0.00013672,2]
[421323442,1777434645448,-300.0,0.00013697,2]
[421323443,1777434645459,-500.0,0.00013698,2]
[421323444,1777434645469,-500.0,0.00013698,2]
[421323445,1777434645479,-500.0,0.00013698,2]
[421323446,1777434645489,-500.0,0.00013698,2]
[421323447,1777434645501,-500.0,0.00013698,2]
[421323448,1777434645513,-500.0,0.00013698,2]
[421323449,1777434645524,-500.0,0.00013698,2]
[421323450,1777434645535,-500.0,0.00013698,2]
[421323451,1777434645547,-500.0,0.00013698,2]
[421323452,1777434645558,-500.0,0.00013698,2]
[421323453,1777434645568,-500.0,0.00013698,2]
[421323454,1777434645578,-500.0,0.00013698,2]
[421323455,1777434645589,-500.0,0.00013698,2]
[421323456,1777434645599,-500.0,0.00013698,2]
[421323457,1777434645609,-500.0,0.00013698,2]
[421323458,1777434645620,-500.0,0.00013698,2]
[421323459,1777434645631,-500.0,0.00013698,2]
[421323460,1777434645643,-528.49750855,0.00013698,2]
[421323461,1777434645654,-500.0,0.00013698,2]
[421323462,1777434645666,-500.0,0.00013698,2]
[421323463,1777434645676,-500.0,0.00013698,2]
[421323464,1777434645687,-500.0,0.00013698,2]
[421323465,1777434645697,-500.0,0.00013698,2]
[421323466,1777434645708,-500.0,0.00013698,2]
[421323467,1777434645720,-500.0,0.00013698,2]
[421323468,1777434645730,-504.35609352,0.00013698,2]
[421323469,1777434645740,-500.0,0.00013698,2]
[421323470,1777434645750,-348.37189061,0.00013698,2]
[421323471,1777434645760,-266.68973894,0.00013698,2]
[421323472,1777434645771,-500.0,0.00013698,2]
[421323473,1777434645781,-453.89498028,0.00013698,2]
[421323474,1777434645792,-500.0,0.00013698,2]
[421323475,1777434645802,-500.0,0.00013698,2]
[421323476,1777434645812,-500.0,0.00013698,2]
[421323477,1777434645821,-500.0,0.00013698,2]
[421323478,1777434645831,-500.0,0.00013698,2]
[421323479,1777434645841,-560.7254881,0.00013698,2]
[421323480,1777434645851,-500.0,0.00013698,2]
[421323481,1777434645860,-500.0,0.00013698,2]
[421323482,1777434645872,-500.0,0.00013698,2]
[421323483,1777434645883,-500.0,0.00013698,2]
[421323484,1777434645893,-500.0,0.00013698,2]
[421323485,1777434645903,-500.0,0.00013698,2]
[421323486,1777434645914,-500.0,0.00013698,2]
[421323487,1777434645924,-500.0,0.00013698,2]
[421323488,1777434645934,-500.0,0.00013698,2]
[421323489,1777434645944,-500.0,0.00013698,2]
[421323490,1777434645955,-500.0,0.00013698,2]
[421323491,1777434645965,-500.0,0.00013698,2]
[421323492,1777434645976,-500.0,0.00013698,2]
[421323493,1777434645986,-500.0,0.00013698,2]
[421323494,1777434645996,-415.55413455,0.00013698,2]
[421323495,1777434646007,-500.0,0.00013698,2]
[421323496,1777434646017,-500.0,0.00013698,2]
[421323497,1777434646027,-500.0,0.00013698,2]
[421323498,1777434646037,-500.0,0.00013698,2]
[421323499,1777434646047,-500.0,0.00013698,2]
[421323501,1777434646057,-455.16380871,0.00013698,2]
[421323502,1777434646068,-500.0,0.00013698,2]
[421323503,1777434646079,-500.0,0.00013698,2]
[421323504,1777434646089,-500.0,0.00013698,2]
[421323505,1777434646099,-500.0,0.00013698,2]
[421323506,1777434646110,-500.0,0.00013698,2]
[421323507,1777434646120,-500.0,0.00013698,2]
[421323508,1777434646130,-500.0,0.00013698,2]
[421323509,1777434646140,-500.0,0.00013698,2]
[421323510,1777434646150,-500.0,0.00013698,2]
[421323511,1777434646161,-354.16981892,0.00013698,2]
[421323512,1777434646171,-500.0,0.00013698,2]
[421323513,1777434646183,-500.0,0.00013698,2]
[421323514,1777434646193,-500.0,0.00013698,2]
[421323515,1777434646204,-500.0,0.00013698,2]
[421323516,1777434646214,-500.0,0.00013698,2]
[421323517,1777434646225,-505.64331201,0.00013698,2]
[421323518,1777434646235,-502.17801083,0.00013698,2]
[421323519,1777434646245,-500.0,0.00013698,2]
[421323520,1777434646255,-500.0,0.00013698,2]
[421323521,1777434646266,-500.0,0.00013698,2]
[421323522,1777434646279,-500.0,0.00013698,2]
[421323523,1777434646290,-500.0,0.00013698,2]
[421323524,1777434646301,-500.0,0.00013698,2]
[421323525,1777434646312,-548.53707285,0.00013698,2]
[421323526,1777434646322,-500.9306241,0.00013698,2]
[421323527,1777434646334,-500.0,0.00013698,2]
[421323528,1777434646345,-253.20995783,0.00013698,2]
[421323529,1777434646355,-504.85252686,0.00013698,2]
[421323530,1777434646366,-500.0,0.00013698,2]
[421323531,1777434646376,-500.0,0.00013698,2]
[421323532,1777434646386,-500.0,0.00013698,2]
[421323533,1777434646396,-500.0,0.00013698,2]
[421323534,1777434646407,-500.0,0.00013698,2]
[421323535,1777434646416,-500.0,0.00013698,2]
[421323536,1777434646428,-500.0,0.00013698,2]
[421323537,1777434646439,-500.0,0.00013698,2]
[421323538,1777434646449,-500.0,0.00013698,2]
[421323539,1777434646459,-500.0,0.00013698,2]
[421323540,1777434646469,-500.0,0.00013698,2]
[421323541,1777434646479,-500.0,0.00013698,2]
[421323542,1777434646490,-500.0,0.00013698,2]
[421323543,1777434646502,-500.0,0.00013698,2]
[421323544,1777434646513,-500.0,0.00013698,2]
[421323545,1777434646524,-500.0,0.00013698,2]
[421323546,1777434646534,-500.0,0.00013698,2]
[421323547,1777434646547,-500.0,0.00013698,2]
[421323548,1777434646558,-500.0,0.00013698,2]
[421323549,1777434646569,-509.98545158,0.00013698,2]
[421323550,1777434646580,-501.22002812,0.00013698,2]
[421323552,1777434646590,-500.0,0.00013698,2]
[421323555,1777434646600,-500.0,0.00013698,2]
[421323557,1777434646610,-500.0,0.00013698,2]
[421323558,1777434646622,-500.0,0.00013698,2]
[421323559,1777434646632,-500.0,0.00013698,2]
[421323560,1777434646642,-500.0,0.00013698,2]
[421323561,1777434646653,-500.0,0.00013698,2]
[421323562,1777434646664,-500.0,0.00013698,2]
[421323563,1777434646675,-500.0,0.00013698,2]
[421323564,1777434646685,-500.0,0.00013698,2]
[421323565,1777434646696,-500.0,0.00013698,2]
[421323566,1777434646706,-500.0,0.00013698,2]
[421323567,1777434646717,-500.0,0.00013698,2]
[421323568,1777434646727,-500.0,0.00013698,2]
[421323569,1777434646737,-500.0,0.00013698,2]
[421323570,1777434646747,-500.0,0.00013698,2]
[421323571,1777434646759,-500.0,0.00013698,2]
[421323572,1777434646769,-500.0,0.00013698,2]
[421323573,1777434646780,-500.0,0.00013698,2]
[421323574,1777434646790,-202.59519674,0.00013698,2]
[421323575,1777434646801,-500.0,0.00013698,2]
[421323576,1777434646813,-500.0,0.00013698,2]
[421323577,1777434646823,-399.08689906,0.00013698,2]
[421323578,1777434646835,-500.0,0.00013698,2]
[421323579,1777434646846,-500.0,0.00013698,2]
[421323580,1777434646858,-500.0,0.00013698,2]
[421323581,1777434646869,-613.69188947,0.00013698,2]
[421323582,1777434646879,-500.0,0.00013698,2]
[421323583,1777434646889,-500.0,0.00013698,2]
[421323584,1777434646899,-500.0,0.00013698,2]
[421323585,1777434646911,-500.0,0.00013698,2]
[421323586,1777434646920,-500.0,0.00013698,2]
[421323587,1777434646931,-500.0,0.00013698,2]
[421323588,1777434646942,-500.0,0.00013698,2]
[421323589,1777434646952,-500.0,0.00013699,2]
[421323590,1777434646963,-151.0,0.00013699,2]
[421323591,1777434646973,-151.0,0.00013699,2]
[421323592,1777434646983,-151.0,0.00013699,2]
[421323593,1777434646993,-151.0,0.00013699,2]
[421323594,1777434647003,-1556.715247,0.00013699,2]
[421323595,1777434647014,-1556.715247,0.00013699,2]
[421323596,1777434647025,-1556.715247,0.00013699,2]
[421323597,1777434647035,-1556.715247,0.00013699,2]
[421323598,1777434647045,-1556.715247,0.00013699,2]
[421323599,1777434647056,-1556.715247,0.00013699,2]
[421323600,1777434647066,-1556.715247,0.00013699,2]
[421323601,1777434647076,-1556.715247,0.00013699,2]
[421323602,1777434647087,-387.764034,0.00013699,2]
[421323603,1777434647097,-387.764034,0.00013699,2]
[421323604,1777434647107,-387.764034,0.00013699,2]
[421323605,1777434647117,-387.764034,0.00013699,2]
[421323606,1777434647127,-387.764034,0.00013699,2]
[421323607,1777434647137,-387.764034,0.00013699,2]
[421323608,1777434647148,-387.764034,0.00013699,2]
[421323609,1777434647158,-387.764034,0.00013699,2]
[421323610,1777434647168,-256.54529692,0.00013699,2]
[421323611,1777434647178,-154.79185078,0.00013699,2]
[421323612,1777434647189,-155.40797488,0.00013699,2]
[421323613,1777434647199,-200.0,0.00013699,2]
[421323614,1777434647209,-154.24208208,0.00013699,2]
[421323615,1777434647219,-154.0,0.00013699,2]
[421323616,1777434647229,-154.0,0.00013699,2]
[421323617,1777434647239,-154.0,0.00013699,2]
[421323618,1777434647249,-154.0,0.00013699,2]
[421323619,1777434647259,-154.0,0.00013699,2]
[421323620,1777434647269,-166.91004612,0.00013699,2]
[421323621,1777434647280,-154.0,0.00013699,2]
[421323622,1777434647290,-357.0,0.00013699,2]
[421323623,1777434647300,-357.0,0.00013699,2]
[421323624,1777434647309,-357.0,0.00013699,2]
[421323625,1777434647319,-357.0,0.00013699,2]
[421323626,1777434647329,-357.0,0.00013699,2]
[421323627,1777434647339,-357.0,0.00013699,2]
[421323628,1777434647348,-357.0,0.00013699,2]
[421323629,1777434647359,-357.0,0.00013699,2]
[421323630,1777434647369,-357.0,0.00013699,2]
[421323631,1777434647379,-357.0,0.00013699,2]
[421323632,1777434647390,-357.0,0.00013699,2]
[421323633,1777434647400,-357.0,0.00013699,2]
[421323634,1777434647411,-357.0,0.00013699,2]
[421323635,1777434647421,-357.0,0.00013699,2]
[421323636,1777434647431,-357.0,0.00013699,2]
[421323638,1777434647440,-357.0,0.00013699,2]
[421323640,1777434647451,-357.0,0.00013699,2]
[421323642,1777434647461,-357.0,0.00013699,2]
[421323644,1777434647471,-357.0,0.00013699,2]
[421323645,1777434647480,-357.0,0.00013699,2]
[421323647,1777434647490,-357.0,0.00013699,2]
[421323649,1777434647500,-357.0,0.00013699,2]
[421323650,1777434647510,-357.0,0.00013699,2]
[421323652,1777434647520,-357.0,0.00013699,2]
[421323654,1777434647530,-357.0,0.00013699,2]
[421323656,1777434647540,-357.0,0.00013699,2]
[421323658,1777434647550,-357.0,0.00013699,2]
[421323660,1777434647560,-357.0,0.00013699,2]
[421323661,1777434647569,-351.0,0.00013699,2]
[421323664,1777434647579,-351.0,0.00013699,2]
[421323666,1777434647590,-351.0,0.00013699,2]
[421323667,1777434647600,-374.0,0.00013699,2]
[421323669,1777434647609,-354.0,0.00013699,2]
[421323671,1777434647619,-354.0,0.00013699,2]
[421323672,1777434647629,-354.0,0.00013699,2]
[421323673,1777434647639,-354.0,0.00013699,2]
[421323674,1777434647730,-354.0,0.00013699,2]
[421323675,1777434647740,-354.0,0.00013699,2]
[421323676,1777434647749,-354.0,0.00013699,2]
[421323678,1777434647759,-483.61774381,0.00013699,2]
[421323679,1777434647769,-1000.0,0.00013699,2]
[421323680,1777434647778,-356.0,0.00013699,2]
[421323681,1777434647788,-386.0,0.00013699,2]
[421323682,1777434647797,-356.0,0.00013699,2]
[421323683,1777434647807,-356.0,0.00013699,2]
[421323684,1777434647816,-356.0,0.00013699,2]
[421323685,1777434647825,-371.0,0.00013699,2]
[421323686,1777434647834,-371.0,0.00013699,2]
[421323687,1777434647843,-371.0,0.00013699,2]
[421323688,1777434647854,-371.0,0.00013699,2]
[421323689,1777434647864,-371.0,0.00013699,2]
[421323690,1777434647874,-371.0,0.00013699,2]
[421323691,1777434647885,-387.764034,0.00013699,2]
[421323692,1777434647894,-387.764034,0.00013699,2]
[421323693,1777434647904,-387.764034,0.00013699,2]
[421323694,1777434647914,-387.764034,0.00013699,2]
[421323695,1777434647924,-345.75211,0.00013699,2]
[421323696,1777434647934,-345.75211,0.00013699,2]
[421323697,1777434647943,-345.75211,0.00013699,2]
[421323698,1777434647954,-345.75211,0.00013699,2]
[421323699,1777434647964,-500.0,0.00013699,2]
[421323700,1777434647973,-500.0,0.00013699,2]
[421323701,1777434647983,-500.0,0.00013699,2]
[421323702,1777434647992,-500.0,0.00013699,2]
[421323703,1777434648001,-500.0,0.00013699,2]
[421323704,1777434648011,-450.0,0.00013699,2]
[421323705,1777434648020,-500.0,0.00013699,2]
[421323706,1777434648030,-500.0,0.00013699,2]
[421323707,1777434648040,-500.0,0.00013699,2]
[421323708,1777434648049,-500.0,0.00013699,2]
[421323709,1777434648058,-268.63,0.000137,2]
[421323710,1777434648068,-162.88,0.000137,2]
[421323711,1777434648078,-200.0,0.00013777,2]
[421323712,1777434648088,-150.0,0.00013785,2]
[421323713,1777434648097,-200.0,0.00013836,2]
[421323714,1777434648108,-151.0,0.00013836,2]
[421323715,1777434648118,-500.0,0.00013856,2]
[421323716,1777434648127,-500.0,0.00013856,2]
[421323717,1777434648136,-600.0,0.00013856,2]
[421323718,1777434648146,-105145.0,0.000139,2]
[421323719,1777434648156,-505.0,0.00013967,2]
[421323720,1777434648166,-311.04866,0.00014,2]
[421323721,1777434648177,-250.0,0.00014088,2]
[421323722,1777434648188,-250.0,0.00014088,2]
[421323723,1777434648198,-250.0,0.00014088,2]
[421323724,1777434648209,-250.0,0.00014088,2]
[421323725,1777434648219,-250.0,0.00014088,2]
[421323726,1777434648228,-250.0,0.00014088,2]
[421323727,1777434648238,-250.0,0.00014088,2]
[421323728,1777434648248,-282.0,0.00014088,2]
[421323729,1777434648257,-151.0,0.00014088,2]
[421323730,1777434648267,-233.51889341,0.00014161,2]
[421323731,1777434648277,-152.0,0.00014209,5]
[421323732,1777434648287,-151.0,0.00014211,2]
[421323733,1777434648297,-151.0,0.00014211,2]
[421323734,1777434648307,-151.0,0.00014211,2]
[421323735,1777434648316,-1556.715247,0.00014212,2]
[421323736,1777434648326,-1556.715247,0.00014212,2]
[421323737,1777434648337,-1556.715247,0.00014212,2]
[421323738,1777434648347,-1556.715247,0.00014212,2]
[421323739,1777434648357,-1152.0,0.00014212,2]
[421323740,1777434648367,-4609.0,0.00014212,2]
[421323741,1777434648376,-425.64902169,0.00014266,2]
[421323742,1777434648386,-5529.0,0.000143,3]
[421323743,1777434648396,-1252.0,0.00014321,2]
[421323744,1777434648407,-315.4474463,0.00014325,2]
[421323745,1777434648416,-200.0,0.00014384,2]
[421323746,1777434648426,-151.0,0.00014384,2]
[421323747,1777434648435,-621.78829552,0.00014553,2]
[421323748,1777434648445,-163.62,0.000146,3]
[421323749,1777434648455,-188.367535,0.0001463,2]
[421323750,1777434648465,-5529.0,0.000147,5]
[421323751,1777434648475,-454.0,0.00014702,2]
[421323752,1777434648485,-159.0,0.00014702,2]
[421323753,1777434648494,-375.0,0.00014702,2]
[421323754,1777434648504,-589.0,0.00014702,2]
[421323755,1777434648513,-739.0,0.00014702,2]
[421323756,1777434648523,-753.0,0.00014702,2]
[421323757,1777434648533,-159.0,0.00014702,2]
[421323758,1777434648543,-1015.0,0.00014702,2]
[421323759,1777434648553,-280.0,0.00014702,2]
[421323760,1777434648563,-2614.0,0.00014702,2]
[421323761,1777434648573,-242.15909246,0.00014709,2]
[421323762,1777434648583,-150.0,0.00014717,2]
[421323763,1777434648593,-296.0,0.00014717,2]
[421323764,1777434648603,-152.0,0.00014792,6]
[421323765,1777434648612,-155.98842083,0.00014792,5]
[421323766,1777434648622,-200.0,0.00014932,2]
[421323767,1777434648632,-197.31032632,0.00014932,2]
[421323768,1777434648642,-505.0,0.00014967,2]
[421323769,1777434648653,-500.0,0.0001497,2]
[421323770,1777434648662,-500.0,0.0001497,2]
[421323771,1777434648672,-1000.0,0.0001497,2]
[421323772,1777434648681,-500.0,0.0001497,2]
[421323773,1777434648690,-1000.0,0.0001497,2]
[421323774,1777434648700,-1000.0,0.0001497,2]
[421323775,1777434648710,-160.20230439,0.00015,20]
[421323776,1777434648720,-300.0,0.00015,2]
[421323777,1777434648729,-178.6,0.00015,2]
[421323778,1777434648738,-324.84,0.00015,2]
[421323779,1777434648748,-251.8,0.00015,2]
[421323780,1777434648758,-1000.0,0.00015,2]
[421323781,1777434648768,-160.0,0.00015,2]
[421323782,1777434648777,-314.0,0.00015,2]
[421323783,1777434648787,-307.0,0.00015,2]
[421323784,1777434648796,-636.0,0.00015,2]
[421323785,1777434648805,-344.0,0.00015,2]
[421323786,1777434648815,-456.0,0.00015,2]
[421323787,1777434648824,-150.0,0.00015068,2]
[421323788,1777434648833,-1101.486246,0.00015068,2]
[421323789,1777434648842,-1101.486246,0.00015068,2]
[421323790,1777434648851,-1101.486246,0.00015068,2]
[421323791,1777434648860,-1101.486246,0.00015068,2]
[421323792,1777434648870,-1101.486246,0.00015068,2]
[421323793,1777434648879,-1101.486246,0.00015068,2]
[421323794,1777434648888,-1101.486246,0.00015068,2]
[421323795,1777434648898,-1101.486246,0.00015068,2]
[421323796,1777434648908,-1101.486246,0.00015068,2]
[421323797,1777434648917,-1101.486246,0.00015068,2]
[421323798,1777434648926,-1101.486246,0.00015068,2]
[421323799,1777434648936,-1101.486246,0.00015068,2]
[421323800,1777434648945,-1183.143327,0.00015068,2]
[421323801,1777434648955,-1183.143327,0.00015068,2]
[421323802,1777434648965,-1183.143327,0.00015068,2]
[421323803,1777434648975,-1183.143327,0.00015068,2]
[421323804,1777434648984,-1183.143327,0.00015068,2]
[421323805,1777434648994,-1183.143327,0.00015068,2]
[421323806,1777434649003,-1183.143327,0.00015068,2]
[421323807,1777434649013,-1183.143327,0.00015068,2]
[421323808,1777434649022,-1183.143327,0.00015068,2]
[421323809,1777434649031,-1183.143327,0.00015068,2]
[421323810,1777434649041,-1183.143327,0.00015068,2]
[421323811,1777434649050,-1183.143327,0.00015068,2]
[421323812,1777434649060,-500.0,0.0001507,2]
[421323813,1777434649070,-1000.0,0.0001507,2]
[421323814,1777434649080,-600.0,0.00015226,2]
[421323815,1777434649090,-251.11897888,0.00015257,2]
[421323816,1777434649099,-500.0,0.0001527,2]
[421323817,1777434649112,-1000.0,0.0001527,2]
[421323818,1777434649123,-2717.715129,0.00015288,7]
[421323819,1777434649132,-1646.813776,0.00015288,2]
[421323820,1777434649142,-1270.2632,0.00015288,7]
[421323821,1777434649152,-188.881867,0.00015288,2]
[421323822,1777434649162,-161.0,0.0001538,2]
[421323823,1777434649172,-2000.0,0.00015416,2]
[421323824,1777434649182,-2010.00729467,0.00015416,2]
[421323825,1777434649192,-775.47832561,0.00015419,2]
[421323826,1777434649202,-500.0,0.0001547,2]
[421323827,1777434649211,-1000.0,0.0001547,2]
[421323828,1777434649221,-200.0,0.0001548,2]
[421323829,1777434649231,-1290.01531358,0.000155,2]
[421323830,1777434649241,-1613.0,0.00015633,2]
[421323831,1777434649251,-6453.0,0.00015633,2]
[421323832,1777434649260,-454.0,0.00015702,2]
[421323833,1777434649271,-173.86713808,0.00015702,2]
[421323834,1777434649280,-375.0,0.00015702,2]
[421323835,1777434649290,-589.0,0.00015702,2]
[421323836,1777434649300,-739.0,0.00015702,2]
[421323837,1777434649310,-753.0,0.00015702,2]
[421323838,1777434649320,-159.0,0.00015702,2]
[421323839,1777434649329,-1015.0,0.00015702,2]
[421323840,1777434649339,-280.0,0.00015702,2]
[421323841,1777434649349,-2614.0,0.00015702,2]
[421323842,1777434649359,-151.0,0.00015702,2]
[421323843,1777434649369,-151.0,0.00015702,2]
[421323844,1777434649379,-151.0,0.00015702,2]
[421323845,1777434649389,-193.428127,0.00015702,2]
[421323846,1777434649399,-2129.0,0.00015759,2]
[421323847,1777434649409,-260.4103811,0.00015805,2]
[421323848,1777434649419,-500.0,0.0001589,2]
[421323849,1777434649428,-500.0,0.0001589,2]
[421323850,1777434649438,-500.0,0.0001589,2]
[421323851,1777434649448,-500.0,0.0001589,2]
[421323852,1777434649457,-500.0,0.0001589,2]